[Event "FIDE Women's Grand Swiss 2023"]
[Site "Villa Marina, Douglas, Isle of Man"]
[Date "2023.11.02"]
[Round "8.17"]
[White "Danielian, Elina"]
[Black "Aulia, Medina Warda"]
[Result "0-1"]
[WhiteElo "2416"]
[BlackElo "2362"]
[EventDate "2023.10.25"]
[ECO "A30"]
[PlyCount "50"]
[BlackFideId "7101570"]
[TimeControl "40/90 + 30 + 30s/move"]
[WhiteFideId "13300210"]

1.Nf3 {[%clk 01:30:57][%emt 00:00:02]} 1...Nf6 {[%clk 01:30:52][%emt 00:00:08]} 
2.g3 {[%clk 01:31:21][%emt 00:00:06]} 2...b6 {[%clk 01:31:12][%emt 00:00:10]} 
3.Bg2 {[%clk 01:31:42][%emt 00:00:09]} 3...Bb7 {[%clk 01:31:32][%emt 00:00:10]} 
4.c4 {[%clk 01:31:45][%emt 00:00:27]} 4...c5 {[%clk 01:31:10][%emt 00:00:52]} 
5.O-O {[%clk 01:32:02][%emt 00:00:13]} 5...g6 {[%clk 01:29:22][%emt 00:02:19]} 
6.Nc3 {[%clk 01:29:10][%emt 00:03:22]} 6...Bg7 {[%clk 01:29:39][%emt 00:00:12]} 
7.d4 {[%clk 01:28:42][%emt 00:00:59]} 7...cxd4 {[%clk 01:29:51][%emt 00:00:17]} 
8.Qxd4 {[%clk 01:28:51][%emt 00:00:22]} 8...O-O {[%clk 01:29:50][%emt 00:00:30]} 
9.Qh4 {[%clk 01:28:34][%emt 00:00:47]} 9...d6 {[%clk 01:26:59][%emt 00:03:21]} 
10.Rd1 {[%clk 01:28:03][%emt 00:01:01]} 10...Nbd7 {[%clk 01:26:52][%emt
00:00:38]} 11.Bh6 {[%clk 01:27:10][%emt 00:01:22]} 11...Re8 {[%clk
01:26:32][%emt 00:00:50]} 12.Rac1 {[%clk 01:25:42][%emt 00:01:58]} 12...Rc8 
{[%clk 01:26:11][%emt 00:00:50]} 13.b3 {[%clk 01:21:03][%emt 00:05:10]} 13...a6 
{[%clk 01:23:17][%emt 00:03:25]} 14.Bh3 {[%clk 00:57:10][%emt 00:24:23]} 
14...Rc5 {[%clk 01:16:38][%emt 00:07:09]} 15.g4 {[%clk 00:44:18][%emt 00:13:21]} 
( 15.Bxg7 Kxg7 16.Qd4 ) 15...Bxf3 {[%clk 01:08:52][%emt 00:08:16]} 16.exf3 
{[%clk 00:44:45][%emt 00:00:03]} 16...Ne5 {[%clk 01:07:32][%emt 00:01:50]} 
17.Bg2 {[%clk 00:42:55][%emt 00:02:19]} 17...g5 {[%clk 01:07:23][%emt 00:00:41]} 
18.Qh3 {[%clk 00:26:41][%emt 00:16:44]} 18...Ng6 {[%clk 01:07:43][%emt
00:00:09]} 19.Bxg7 {[%clk 00:27:08][%emt 00:00:04]} 19...Kxg7 {[%clk
01:08:08][%emt 00:00:04]} 20.Bf1 {[%clk 00:26:31][%emt 00:01:07]} 20...h5 
{[%clk 01:05:50][%emt 00:02:49]} 21.Bd3 {[%clk 00:17:33][%emt 00:09:28]} 
21...Nf4 {[%clk 01:03:51][%emt 00:02:28]} 22.Qf1 {[%clk 00:18:02][%emt
00:00:01]} 22...hxg4 {[%clk 01:03:39][%emt 00:00:43]} 23.fxg4 {[%clk
00:18:29][%emt 00:00:02]} 23...Nxg4 {[%clk 01:03:25][%emt 00:00:44]} 24.Nd5 
{[%clk 00:17:40][%emt 00:01:19]} 24...Rh8 {[%clk 00:54:23][%emt 00:09:32]} 
25.Bf5 {[%clk 00:14:31][%emt 00:03:40]} 25...Nxh2 {[%clk 00:54:14][%emt
00:00:39]} 0-1

[Event "FIDE Women's Grand Swiss 2023"]
[Site "Villa Marina, Douglas, Isle of Man"]
[Date "2023.11.03"]
[Round "9.17"]
[White "Beydullayeva, Govhar"]
[Black "Batsiashvili, Nino"]
[Result "1-0"]
[WhiteElo "2383"]
[BlackElo "2475"]
[EventDate "2023.10.25"]
[ECO "A07"]
[PlyCount "63"]
[BlackClock "00:31:23"]
[BlackFideId "13602993"]
[TimeControl "40/90 + 30 + 30s/move"]
[WhiteClock "00:33:43"]
[WhiteFideId "13413015"]

1.Nf3 {[%clk 01:30:54][%emt 00:00:06]} 1...Nf6 {[%clk 01:30:49][%emt 00:00:12]} 
2.g3 {[%clk 01:31:10][%emt 00:00:14]} 2...d5 {[%clk 01:31:13][%emt 00:00:06]} 
3.Bg2 {[%clk 01:31:35][%emt 00:00:05]} 3...c5 {[%clk 01:31:38][%emt 00:00:04]} 
4.O-O {[%clk 01:31:53][%emt 00:00:12]} 4...Nc6 {[%clk 01:32:05][%emt 00:00:02]} 
5.d4 {[%clk 01:32:15][%emt 00:00:09]} 5...cxd4 {[%clk 01:32:31][%emt 00:00:05]} 
6.Nxd4 {[%clk 01:32:42][%emt 00:00:03]} 6...e5 {[%clk 01:32:57][%emt 00:00:03]} 
7.Nxc6 {[%clk 01:33:03][%emt 00:00:10]} 7...bxc6 {[%clk 01:33:23][%emt
00:00:04]} 8.c4 {[%clk 01:32:28][%emt 00:01:05]} 8...Be6 {[%clk 01:33:49][%emt
00:00:04]} 9.Nc3 {[%clk 01:31:05][%emt 00:01:53]} 9...Rc8 {[%clk 01:33:57][%emt
00:00:21]} 10.Qa4 {[%clk 01:30:10][%emt 00:01:26]} 10...Qd7 {[%clk
01:34:17][%emt 00:00:10]} 11.cxd5 {[%clk 01:30:26][%emt 00:00:14]} 11...cxd5 
{[%clk 01:34:42][%emt 00:00:05]} 12.Qxd7+ {[%clk 01:30:47][%emt 00:00:10]} 
12...Kxd7 {[%clk 01:35:10][%emt 00:00:01]} 13.Rd1 {[%clk 01:30:08][%emt
00:01:10]} 13...Bc5 {[%clk 01:32:40][%emt 00:02:59]} 14.Na4 {[%clk
01:29:44][%emt 00:00:55]} 14...a6 {[%clk 01:22:07][%emt 00:11:03]} 15.Bg5 
{[%clk 01:17:46][%emt 00:12:28]} 15...Kd6 {[%clk 01:14:46][%emt 00:07:50]} 
16.Nxc5 {[%clk 01:11:20][%emt 00:06:56]} 16...Rxc5 {[%clk 01:15:10][%emt
00:00:07]} 17.e4 {[%clk 01:07:15][%emt 00:04:35]} 17...h6 {[%clk 01:06:46][%emt
00:08:53]} 18.Bd2 {[%clk 00:54:39][%emt 00:13:07]} 18...Rb5 {[%clk
00:56:08][%emt 00:11:08]} 19.exd5 {[%clk 00:47:23][%emt 00:07:45]} 19...Nxd5 
{[%clk 00:41:27][%emt 00:15:11]} 20.Bc3 {[%clk 00:38:48][%emt 00:09:06]} 
20...f6 {[%clk 00:31:27][%emt 00:10:30]} 21.a4 {[%clk 00:36:36][%emt 00:02:42]} 
21...Rc5 {[%clk 00:30:35][%emt 00:01:22]} 22.Bb4 {[%clk 00:36:44][%emt
00:00:22]} 22...Rc8 {[%clk 00:31:04]} 23.Rac1 {[%clk 00:35:49][%emt 00:01:25]} 
23...e4 {[%clk 00:29:30][%emt 00:02:04]} 24.Bxe4 {[%clk 00:35:00][%emt
00:01:20]} 24...Ke5 {[%clk 00:29:49][%emt 00:00:11]} 25.Bxc5 {[%clk
00:35:10][%emt 00:00:19]} 25...Kxe4 {[%clk 00:30:04][%emt 00:00:15]} 26.Re1+ 
{[%clk 00:35:30][%emt 00:00:11]} 26...Kf5 {[%clk 00:30:29][%emt 00:00:05]} 
27.g4+ {[%clk 00:35:57][%emt 00:00:03]} 27...Kxg4 {[%clk 00:30:07][%emt
00:00:51]} 28.Rxe6 {[%clk 00:36:23][%emt 00:00:05]} 28...Nf4 {[%clk
00:30:34][%emt 00:00:02]} 29.Re4 {[%clk 00:36:28][%emt 00:00:25]} 29...g5 
{[%clk 00:30:52][%emt 00:00:12]} 30.Be3 {[%clk 00:34:52][%emt 00:02:06]} 
30...Rd8 {[%clk 00:31:09][%emt 00:00:13]} 31.Bxf4 {[%clk 00:34:31][%emt
00:00:51]} 31...gxf4 {[%clk 00:31:28][%emt 00:00:11]} 32.Kg2 {[%clk 00:33:43]
[%emt 00:01:18]} 1-0

[Event "FIDE Women's Grand Swiss 2023"]
[Site "Villa Marina, Douglas, Isle of Man"]
[Date "2023.11.04"]
[Round "10.20"]
[White "Sandu, Mihaela"]
[Black "Kosteniuk, Alexandra"]
[Result "0-1"]
[WhiteElo "2298"]
[BlackElo "2523"]
[EventDate "2023.10.25"]
[ECO "B47"]
[PlyCount "114"]
[BlackFideId "4128125"]
[TimeControl "40/90 + 30 + 30s/move"]
[WhiteFideId "1204327"]

1.e4 {[%clk 01:30:56][%emt 00:00:03]} 1...c5 {[%clk 01:30:56][%emt 00:00:05]} 
2.Nf3 {[%clk 01:31:14][%emt 00:00:12]} 2...e6 {[%clk 01:31:22][%emt 00:00:04]} 
3.d4 {[%clk 01:31:29][%emt 00:00:14]} 3...cxd4 {[%clk 01:31:47][%emt 00:00:05]} 
4.Nxd4 {[%clk 01:31:57][%emt 00:00:02]} 4...Nc6 {[%clk 01:32:06][%emt 00:00:12]} 
5.Nc3 {[%clk 01:32:09][%emt 00:00:18]} 5...Qc7 {[%clk 01:32:18][%emt 00:00:18]} 
6.Be2 {[%clk 01:31:34][%emt 00:01:04]} 6...Nf6 {[%clk 01:32:33][%emt 00:00:15]} 
7.Be3 {[%clk 01:27:23][%emt 00:04:42]} 7...a6 {[%clk 01:32:02][%emt 00:01:02]} 
8.Nxc6 {[%clk 01:24:49][%emt 00:03:03]} 8...bxc6 {[%clk 01:28:26][%emt
00:04:06]} 9.f4 {[%clk 01:24:31][%emt 00:00:48]} 9...d5 {[%clk 01:25:42][%emt
00:03:14]} 10.e5 {[%clk 01:20:13][%emt 00:04:48]} 10...Nd7 {[%clk 01:25:47][%emt
00:00:25]} 11.O-O {[%clk 01:19:54][%emt 00:00:49]} 11...Be7 {[%clk
01:15:22][%emt 00:10:55]} 12.Kh1 {[%clk 01:18:27][%emt 00:01:57]} 12...g6 
{[%clk 01:05:28][%emt 00:10:24]} 13.Qe1 {[%clk 01:07:55][%emt 00:11:01]} 
13...Bb7 {[%clk 01:02:52][%emt 00:03:06]} 14.Rd1 {[%clk 01:04:23][%emt
00:04:03]} 14...c5 {[%clk 00:58:49][%emt 00:04:33]} 15.Bc1 {[%clk 01:01:16][%emt
00:03:36]} 15...O-O {[%clk 00:53:28][%emt 00:05:51]} 16.b3 {[%clk 00:56:33][%emt
00:05:14]} 16...Nb6 {[%clk 00:48:23][%emt 00:05:35]} 17.Bf3 {[%clk
00:56:51][%emt 00:00:11]} 17...Rad8 {[%clk 00:48:15][%emt 00:00:39]} 18.a4 
{[%clk 00:53:56][%emt 00:03:25]} 18...Kh8 {[%clk 00:43:46][%emt 00:04:58]} 
19.Bb2 {[%clk 00:49:12][%emt 00:05:15]} 19...f5 {[%clk 00:38:55][%emt 00:05:21]} 
20.exf6 {[%clk 00:47:31][%emt 00:02:10]} 20...Bxf6 {[%clk 00:39:22][%emt
00:00:03]} 21.a5 {[%clk 00:40:45][%emt 00:07:16]} 21...Nc8 {[%clk 00:39:35][%emt
00:00:17]} 22.Qxe6 {[%clk 00:39:37][%emt 00:01:39]} 22...Qg7 {[%clk
00:38:19][%emt 00:01:46]} 23.Qe1 {[%clk 00:37:39][%emt 00:02:28]} 23...Rfe8 
{[%clk 00:33:54][%emt 00:04:55]} 24.Qd2 {[%clk 00:36:44][%emt 00:01:25]} 
24...Nd6 {[%clk 00:30:35][%emt 00:03:49]} 25.Rfe1 {[%clk 00:24:06][%emt
00:13:07]} 25...Nf5 {[%clk 00:26:18][%emt 00:04:48]} 26.Ba1 {[%clk
00:23:35][%emt 00:01:01]} 26...Bd4 {[%clk 00:14:55][%emt 00:11:53]} 27.h3 
{[%clk 00:08:19][%emt 00:15:46]} 27...g5 {[%clk 00:06:18][%emt 00:09:07]} 
28.Na4 {[%clk 00:02:14][%emt 00:06:35]} 28...Rxe1+ {[%clk 00:05:00][%emt
00:01:48]} 29.Qxe1 {[%clk 00:02:32][%emt 00:00:12]} 29...Bxa1 {[%clk
00:04:10][%emt 00:01:20]} 30.Rxa1 {[%clk 00:02:57][%emt 00:00:05]} 30...Ne3 
{[%clk 00:04:11][%emt 00:00:28]} 31.Nxc5 {[%clk 00:02:03][%emt 00:01:25]} 
31...Nxc2 {[%clk 00:04:07][%emt 00:00:34]} 32.Qe5 {[%clk 00:01:12][%emt
00:01:21]} 32...Qxe5 {[%clk 00:04:16][%emt 00:00:21]} 33.fxe5 {[%clk
00:01:38][%emt 00:00:04]} 33...Nxa1 {[%clk 00:04:42][%emt 00:00:04]} 34.Nxb7 
{[%clk 00:01:43][%emt 00:00:25]} 34...Re8 {[%clk 00:04:54][%emt 00:00:18]} 
35.Be2 {[%clk 00:01:29][%emt 00:00:44]} ( 35.Nd6 Re7 36.Bxd5 Nc2 37.Bc4 ) 
35...Rxe5 {[%clk 00:04:51][%emt 00:00:34]} 36.Bxa6 {[%clk 00:01:56][%emt
00:00:03]} 36...Nxb3 {[%clk 00:04:47][%emt 00:00:33]} 37.Bd3 {[%clk
00:02:08][%emt 00:00:18]} 37...Re3 {[%clk 00:03:54][%emt 00:01:22]} 38.Bf5 
{[%clk 00:01:57][%emt 00:00:41]} 38...Re1+ {[%clk 00:01:31][%emt 00:02:53]} 
39.Kh2 {[%clk 00:02:23][%emt 00:00:04]} 39...Ra1 {[%clk 00:01:55][%emt
00:00:06]} 40.Be6 {[%clk 00:02:00][%emt 00:00:53]} 40...Nxa5 {[%clk
00:02:20][%emt 00:00:06]} 41.Bxd5 {[%clk 00:02:25][%emt 00:00:05]} 41...Nxb7 
{[%clk 00:02:37][%emt 00:00:13]} 42.Bxb7 {[%clk 00:02:49][%emt 00:00:05]} 
42...h5 {[%clk 00:00:47][%emt 00:02:21]} 43.Bf3 {[%clk 00:27:52][%emt 00:05:27]} 
43...h4 {[%clk 00:30:53][%emt 00:00:24]} 44.Bd5 {[%clk 00:25:58][%emt 00:02:24]} 
44...Kg7 {[%clk 00:31:17][%emt 00:00:06]} 45.Bf3 {[%clk 00:26:19][%emt
00:00:09]} 45...Kf6 {[%clk 00:31:39][%emt 00:00:08]} 46.Bd5 {[%clk
00:26:42][%emt 00:00:06]} 46...Ke5 {[%clk 00:31:58][%emt 00:00:12]} 47.Bf3 
{[%clk 00:27:07][%emt 00:00:05]} 47...Kf4 {[%clk 00:32:11][%emt 00:00:16]} 
48.Bb7 {[%clk 00:27:30][%emt 00:00:07]} 48...Ra3 {[%clk 00:32:19][%emt
00:00:23]} 49.Bc6 {[%clk 00:27:49][%emt 00:00:11]} 49...Rc3 {[%clk
00:32:45][%emt 00:00:03]} 50.Bb7 {[%clk 00:28:06][%emt 00:00:13]} 50...Rg3 
{[%clk 00:27:09][%emt 00:06:06]} 51.Bc6 {[%clk 00:27:15][%emt 00:01:21]} 
51...g4 {[%clk 00:23:05][%emt 00:04:34]} 52.hxg4 {[%clk 00:27:22][%emt
00:00:23]} 52...Rxg4 {[%clk 00:23:29][%emt 00:00:06]} 53.Bb7 {[%clk
00:26:57][%emt 00:00:55]} 53...Rg7 {[%clk 00:23:52][%emt 00:00:08]} 54.Bc6 
{[%clk 00:27:14][%emt 00:00:12]} 54...Rc7 {[%clk 00:24:18][%emt 00:00:04]} 
55.Bd5 {[%clk 00:27:21][%emt 00:00:23]} 55...Re7 {[%clk 00:24:27][%emt
00:00:21]} 56.Bc6 {[%clk 00:27:02][%emt 00:00:49]} 56...h3 {[%clk 00:24:48][%emt
00:00:09]} 57.g3+ {[%clk 00:23:36][%emt 00:03:57]} 57...Kg4 {[%clk
00:24:52][%emt 00:00:26]} 0-1

[Event "FIDE Women's Grand Swiss 2023"]
[Site "Villa Marina, Douglas, Isle of Man"]
[Date "2023.11.04"]
[Round "10.21"]
[White "Roebers, Eline"]
[Black "Danielian, Elina"]
[Result "1-0"]
[WhiteElo "2390"]
[BlackElo "2416"]
[EventDate "2023.10.25"]
[ECO "B09"]
[PlyCount "63"]
[BlackFideId "13300210"]
[TimeControl "40/90 + 30 + 30s/move"]
[WhiteFideId "1058401"]

1.e4 {[%clk 01:30:59]} 1...d6 {[%clk 01:30:49][%emt 00:00:11]} 2.d4 {[%clk
01:31:25][%emt 00:00:04]} 2...Nf6 {[%clk 01:31:16][%emt 00:00:04]} 3.Nc3 {[%clk
01:31:49][%emt 00:00:06]} 3...g6 {[%clk 01:31:41][%emt 00:00:04]} 4.f4 {[%clk
01:31:39][%emt 00:00:41]} 4...Bg7 {[%clk 01:32:06][%emt 00:00:04]} 5.Nf3 {[%clk
01:31:53][%emt 00:00:16]} 5...O-O {[%clk 01:32:29][%emt 00:00:07]} 6.a3 {[%clk
01:32:11][%emt 00:00:13]} 6...c5 {[%clk 01:31:27][%emt 00:01:32]} 7.dxc5 {[%clk
01:32:36][%emt 00:00:05]} 7...Qa5 {[%clk 01:31:15][%emt 00:00:42]} 8.b4 {[%clk
01:31:19][%emt 00:01:47]} 8...Qd8 {[%clk 01:31:39][%emt 00:00:05]} 9.Bd2 {[%clk
01:30:00][%emt 00:01:49]} 9...dxc5 {[%clk 01:31:18][%emt 00:00:52]} 10.e5 
{[%clk 01:29:43][%emt 00:00:47]} 10...Nfd7 {[%clk 01:11:31][%emt 00:20:17]} 
11.Bd3 {[%clk 01:29:13][%emt 00:00:59]} 11...Nc6 {[%clk 01:10:46][%emt
00:01:15]} 12.h4 {[%clk 01:26:14][%emt 00:03:29]} 12...cxb4 {[%clk
01:09:15][%emt 00:02:01]} 13.Ne4 {[%clk 01:26:40][%emt 00:00:05]} 13...h5 
{[%clk 00:42:04][%emt 00:27:41]} 14.axb4 {[%clk 01:17:23][%emt 00:09:46]} 
14...Nb6 {[%clk 00:42:24][%emt 00:00:10]} 15.Qe2 {[%clk 01:16:54][%emt
00:00:59]} 15...Bg4 {[%clk 00:38:19][%emt 00:04:36]} 16.c3 {[%clk 01:16:46][%emt
00:00:38]} 16...Qc8 {[%clk 00:26:57][%emt 00:11:53]} 17.Nf2 {[%clk
01:13:36][%emt 00:03:39]} 17...Bf5 {[%clk 00:26:52][%emt 00:00:35]} 18.Bxf5 
{[%clk 01:11:37][%emt 00:02:29]} 18...Qxf5 {[%clk 00:27:16][%emt 00:00:05]} 
19.b5 {[%clk 01:12:01][%emt 00:00:07]} 19...Nd8 {[%clk 00:26:53][%emt 00:00:53]} 
20.g4 {[%clk 01:12:20][%emt 00:00:11]} 20...hxg4 {[%clk 00:26:26][%emt
00:00:56]} 21.Nd4 {[%clk 01:12:31][%emt 00:00:19]} 21...Qd7 {[%clk
00:16:23][%emt 00:10:34]} 22.h5 {[%clk 01:10:32][%emt 00:02:28]} 22...gxh5 
{[%clk 00:16:43][%emt 00:00:11]} 23.f5 {[%clk 00:57:46][%emt 00:13:15]} 
23...Qd5 {[%clk 00:16:42][%emt 00:00:31]} 24.f6 {[%clk 00:56:53][%emt 00:01:24]} 
24...exf6 {[%clk 00:16:44][%emt 00:00:28]} 25.Rxh5 {[%clk 00:56:18][%emt
00:01:05]} 25...Re8 {[%clk 00:13:34][%emt 00:03:40]} 26.Nxg4 {[%clk
00:55:15][%emt 00:01:33]} 26...Nc4 {[%clk 00:02:22][%emt 00:11:42]} 27.O-O-O 
{[%clk 00:53:48][%emt 00:01:57]} 27...Nxe5 {[%clk 00:00:36][%emt 00:02:16]} 
28.Nf5 {[%clk 00:51:16][%emt 00:03:02]} 28...Nd3+ {[%clk 00:00:40][%emt
00:00:26]} 29.Qxd3 {[%clk 00:51:42][%emt 00:00:05]} 29...Qxd3 {[%clk
00:01:05][%emt 00:00:04]} 30.Nxf6+ {[%clk 00:52:01][%emt 00:00:10]} 30...Bxf6 
{[%clk 00:00:32][%emt 00:01:04]} 31.Rg1+ {[%clk 00:52:26][%emt 00:00:04]} 
31...Kf8 {[%clk 00:00:33][%emt 00:00:30]} 32.Bh6+ {[%clk 00:52:50][%emt
00:00:06]} ( 32.Bh6+ Bg7 33.Bxg7+ Kg8 34.Rh8# ) 1-0